fUST/lending_fUST_20250408
["ID","MTS","AMOUNT","RATE_DAILY","PERIOD"]
[357475897,1744079449890,-500.0,0.00022739,2]
[357475898,1744079449900,-1140.19,0.00022739,2]
[357475899,1744079449910,-500.0,0.00022739,2]
[357475900,1744079449920,-727.74,0.00022739,2]
[357475901,1744079449930,-500.0,0.00022739,2]
[357475902,1744079449939,-500.0,0.00022739,2]
[357475903,1744079449949,-500.0,0.00022739,2]
[357475904,1744079449958,-554.86,0.00022739,2]
[357475905,1744079449967,-500.0,0.00022739,2]
[357475906,1744079449977,-831.74,0.00022739,2]
[357475907,1744079449986,-500.0,0.00022739,2]
[357475908,1744079449995,-500.0,0.00022739,2]
[357475909,1744079450005,-500.0,0.00022739,2]
[357475910,1744079450015,-1393.1,0.00022739,2]
[357475911,1744079450025,-951.68,0.00022739,2]
[357475912,1744079450035,-500.0,0.00022739,2]
[357475913,1744079450044,-500.0,0.00022739,2]
[357475914,1744079450054,-500.0,0.00022739,2]
[357475915,1744079450064,-500.0,0.00022739,2]
[357475916,1744079450074,-1353.37,0.00022739,2]
[357475917,1744079450084,-500.0,0.00022739,2]
[357475918,1744079450096,-500.0,0.00022739,2]
[357475919,1744079450106,-500.0,0.00022739,2]
[357475920,1744079450116,-1182.11,0.00022739,2]
[357475921,1744079450126,-500.0,0.00022739,2]
[357475922,1744079450136,-500.0,0.00022739,2]
[357475923,1744079450145,-500.0,0.00022739,2]
[357475924,1744079450155,-500.0,0.00022739,2]
[357475925,1744079450165,-500.0,0.00022739,2]
[357475926,1744079450175,-500.0,0.00022739,2]
[357475927,1744079450184,-526.21,0.00022739,2]
[357475928,1744079450195,-500.0,0.00022739,2]
[357475929,1744079450204,-377.07719113,0.00022739,2]
[357475930,1744079450214,-2114.72,0.00022739,2]
[357475931,1744079450224,-500.0,0.00022739,2]
[357475932,1744079450233,-500.0,0.00022739,2]
[357475933,1744079450244,-572.22,0.00022739,2]
[357475934,1744079450254,-500.0,0.00022739,2]
[357475935,1744079450263,-8763.46,0.00022739,2]
[357475936,1744079450273,-500.0,0.00022739,2]
[357475937,1744079450283,-1114.99,0.00022739,2]
[357475938,1744079450293,-500.0,0.00022739,2]
[357475939,1744079450303,-500.0,0.00022739,2]
[357475940,1744079450312,-500.0,0.00022739,2]
[357475941,1744079450322,-500.0,0.00022739,2]
[357475942,1744079450332,-500.0,0.00022739,2]
[357475943,1744079450342,-836.02,0.00022739,2]
[357475944,1744079450352,-1780.71,0.00022739,2]
[357475945,1744079450362,-500.0,0.00022739,2]
[357475946,1744079450371,-500.0,0.00022739,2]
[357475947,1744079450381,-500.0,0.00022739,2]
[357475948,1744079450391,-595.24,0.00022739,2]
[357475949,1744079450402,-524.96,0.00022739,2]
[357475950,1744079450412,-500.0,0.00022739,2]
[357475951,1744079450422,-500.0,0.00022739,2]
[357475952,1744079450432,-771.06,0.00022739,2]
[357475953,1744079450443,-500.0,0.00022739,2]
[357475954,1744079450453,-2262.69,0.00022739,2]
[357475955,1744079450463,-500.0,0.00022739,2]
[357475956,1744079450473,-500.0,0.00022739,2]
[357475957,1744079450482,-515.71217314,0.00022739,2]
[357475958,1744079450492,-2880.26,0.00022739,2]
[357475959,1744079450502,-500.0,0.00022739,2]
[357475960,1744079450512,-1798.88,0.00022739,2]
[357475961,1744079450522,-1134.35,0.00022739,2]
[357475962,1744079450532,-500.0,0.00022739,2]
[357475963,1744079450542,-589.5,0.00022739,2]
[357475964,1744079450551,-500.0,0.00022739,2]
[357475965,1744079450561,-500.0,0.00022739,2]
[357475966,1744079450572,-500.0,0.00022739,2]
[357475967,1744079450582,-1340.54,0.00022739,2]
[357475968,1744079450592,-500.0,0.00022739,2]
[357475969,1744079450602,-500.0,0.00022739,2]
[357475970,1744079450611,-2337.51,0.00022739,2]
[357475971,1744079450621,-542.01,0.00022739,2]
[357475972,1744079450635,-2076.71,0.00022739,2]
[357475973,1744079450645,-500.0,0.00022739,2]
[357475974,1744079450656,-730.76,0.00022739,2]
[357475975,1744079450666,-500.0,0.00022739,2]
[357475976,1744079450677,-1162.69,0.00022739,2]
[357475977,1744079450686,-1291.27,0.00022739,2]
[357475978,1744079450696,-500.0,0.00022739,2]
[357475979,1744079450706,-546.37,0.00022739,2]
[357475980,1744079450716,-500.0,0.00022739,2]
[357475981,1744079450726,-1701.69,0.00022739,2]
[357475982,1744079450736,-1276.21,0.00022739,2]
[357475983,1744079450746,-500.0,0.00022739,2]
[357475984,1744079450755,-500.0,0.00022739,2]
[357475985,1744079450765,-561.08,0.00022739,2]
[357475986,1744079450775,-500.0,0.00022739,2]
[357475987,1744079450785,-500.0,0.00022739,2]
[357475988,1744079450796,-500.0,0.00022739,2]
[357475989,1744079450806,-500.0,0.00022739,2]
[357475990,1744079450816,-890.46,0.00022739,2]
[357475991,1744079450828,-500.0,0.00022739,2]
[357475992,1744079450838,-5381.3,0.00022739,2]
[357475993,1744079450856,-1513.16,0.00022739,2]
[357475994,1744079450866,-500.0,0.00022739,2]
[357475995,1744079450877,-500.0,0.00022739,2]
[357475996,1744079450888,-500.0,0.00022739,2]
[357475997,1744079450899,-500.0,0.00022739,2]
[357475998,1744079450909,-720.44,0.00022739,2]
[357475999,1744079450920,-500.0,0.00022739,2]
[357476000,1744079450931,-500.0,0.00022739,2]
[357476001,1744079450942,-500.0,0.00022739,2]
[357476002,1744079450952,-1073.11,0.00022739,2]
[357476003,1744079450962,-500.0,0.00022739,2]
[357476004,1744079450972,-568.94,0.00022739,2]
[357476005,1744079450982,-523.03,0.00022739,2]
[357476006,1744079450992,-500.0,0.00022739,2]
[357476007,1744079451003,-795.94,0.00022739,2]
[357476008,1744079451014,-590.76,0.00022739,2]
[357476009,1744079451025,-1531.45,0.00022739,2]
[357476010,1744079451036,-500.0,0.00022739,2]
[357476011,1744079451046,-500.0,0.00022739,2]
[357476012,1744079451057,-1878.37,0.00022739,2]
[357476013,1744079451067,-1180.34,0.00022739,2]
[357476014,1744079451078,-500.0,0.00022739,2]
[357476015,1744079451090,-2000.22,0.00022739,2]
[357476016,1744079451101,-1118.42,0.00022739,2]
[357476017,1744079451112,-500.0,0.00022739,2]
[357476018,1744079451122,-500.0,0.00022739,2]
[357476019,1744079451133,-1868.62,0.00022739,2]
[357476020,1744079451144,-500.0,0.00022739,2]
[357476021,1744079451156,-500.0,0.00022739,2]
[357476022,1744079451168,-500.0,0.00022739,2]
[357476023,1744079451178,-500.0,0.00022739,2]
[357476024,1744079451189,-1602.29,0.00022739,2]
[357476025,1744079451199,-500.0,0.00022739,2]
[357476026,1744079451210,-505.71703424,0.00022739,2]
[357476027,1744079451220,-500.0,0.00022739,2]
[357476028,1744079451231,-1915.21,0.00022739,2]
[357476029,1744079451241,-500.0,0.00022739,2]
[357476030,1744079451251,-602.81,0.00022739,2]
[357476031,1744079451262,-500.0,0.00022739,2]
[357476032,1744079451272,-2426.96,0.00022739,2]
[357476033,1744079451283,-500.0,0.00022739,2]
[357476034,1744079451293,-188.7389597,0.00022739,2]
[357476035,1744079451304,-500.0,0.00022739,2]
[357476036,1744079451314,-500.0,0.00022739,2]
[357476037,1744079451325,-500.0,0.00022739,2]
[357476038,1744079451335,-1165.83,0.00022739,2]
[357476039,1744079451346,-2935.5,0.00022739,2]
[357476040,1744079451356,-955.52,0.00022739,2]
[357476041,1744079451367,-500.0,0.00022739,2]
[357476042,1744079451377,-500.0,0.00022739,2]
[357476043,1744079451388,-500.0,0.00022739,2]
[357476044,1744079451398,-500.0,0.00022739,2]
[357476045,1744079451410,-1109.48,0.00022739,2]
[357476046,1744079451595,-500.0,0.00022739,2]
[357476047,1744079451607,-500.0,0.00022739,2]
[357476048,1744079451618,-500.0,0.00022739,2]
[357476049,1744079451631,-500.0,0.00022739,2]
[357476050,1744079451641,-1240.57,0.00022739,2]
[357476051,1744079451651,-500.0,0.00022739,2]
[357476052,1744079451661,-500.0,0.00022739,2]
[357476053,1744079451671,-500.0,0.00022739,2]
[357476054,1744079451681,-1640.16,0.00022739,2]
[357476055,1744079451691,-503.7,0.00022739,2]
[357476056,1744079451701,-352.70119875,0.00022739,2]
[357476057,1744079451711,-500.0,0.00022739,2]
[357476058,1744079451722,-1130.38,0.00022739,2]
[357476059,1744079451732,-500.0,0.00022739,2]
[357476060,1744079451742,-500.0,0.00022739,2]
[357476061,1744079451752,-853.03,0.00022739,2]
[357476062,1744079451762,-500.0,0.00022742,2]
[357476063,1744079451772,-500.0,0.00022844,2]
[357476064,1744079451782,-500.0,0.00022844,2]
[357476065,1744079451792,-501.15278312,0.00022844,2]
[357476066,1744079451802,-500.0,0.00022844,2]
[357476067,1744079451812,-500.0,0.00022844,2]
[357476068,1744079451822,-500.0,0.00022844,2]
[357476069,1744079451832,-500.0,0.00022844,2]
[357476070,1744079451842,-500.0,0.0002285,2]
[357476071,1744079451852,-500.0,0.00022918,2]
[357476072,1744079451862,-207.4,0.00022973,2]
[357476073,1744079451872,-500.0,0.0002298,2]
[357476074,1744079451881,-151.0,0.00023,2]
[357476075,1744079451891,-202.89924348,0.00023,2]
[357476076,1744079451901,-500.0,0.00023013,2]
[357476077,1744079451911,-185.51951348,0.00023013,2]
[357476078,1744079451922,-500.0,0.00023013,2]
[357476079,1744079451932,-500.0,0.00023013,2]
[357476080,1744079451943,-500.0,0.00023013,2]
[357476081,1744079451952,-500.0,0.00023013,2]
[357476082,1744079451962,-500.0,0.00023013,2]
[357476083,1744079451971,-500.0,0.00023013,2]
[357476084,1744079451981,-500.0,0.00023013,2]
[357476085,1744079451992,-500.0,0.00023013,2]
[357476086,1744079452002,-500.0,0.00023013,2]
[357476087,1744079452011,-513.38290688,0.00023013,2]
[357476088,1744079452021,-500.0,0.00023013,2]
[357476089,1744079452031,-500.11,0.00023013,2]
[357476090,1744079452042,-500.0,0.00023013,2]
[357476091,1744079452052,-500.0,0.00023013,2]
[357476092,1744079452063,-500.0,0.00023013,2]
[357476093,1744079452072,-500.0,0.00023013,2]
[357476094,1744079452082,-500.0,0.00023013,2]
[357476095,1744079452092,-387.18960644,0.00023013,2]
[357476096,1744079452102,-500.0,0.00023013,2]
[357476097,1744079452111,-185.76001393,0.00023013,2]
[357476098,1744079452121,-500.0,0.00023013,2]
[357476099,1744079452131,-500.0,0.00023013,2]
[357476100,1744079452140,-500.0,0.00023013,2]
[357476101,1744079452151,-500.0,0.00023013,2]
[357476102,1744079452161,-201.25648485,0.00023013,2]
[357476103,1744079452172,-500.0,0.00023013,2]
[357476104,1744079452182,-500.0,0.00023013,2]
[357476105,1744079452192,-500.0,0.00023013,2]
[357476106,1744079452202,-500.0,0.00023013,2]
[357476107,1744079452213,-500.0,0.00023013,2]
[357476108,1744079452223,-500.0,0.00023013,2]
[357476109,1744079452233,-500.0,0.00023013,2]
[357476110,1744079452242,-500.0,0.00023013,2]
[357476111,1744079452252,-401.47142844,0.00023013,2]
[357476112,1744079452261,-500.0,0.00023013,2]
[357476113,1744079452271,-500.0,0.00023013,2]
[357476114,1744079452280,-500.0,0.00023013,2]
[357476115,1744079452302,-500.0,0.00023013,2]
[357476116,1744079452314,-500.0,0.00023013,2]
[357476117,1744079452324,-319.30812002,0.00023013,2]
[357476118,1744079452335,-617.55,0.00023013,2]
[357476119,1744079452345,-500.0,0.00023013,2]
[357476120,1744079452356,-530.09526081,0.00023013,2]
[357476121,1744079452366,-500.0,0.00023013,2]
[357476122,1744079452377,-500.0,0.00023013,2]
[357476123,1744079452387,-500.0,0.00023013,2]
[357476124,1744079452398,-655.89,0.00023013,2]
[357476125,1744079452410,-500.0,0.00023013,2]
[357476126,1744079452420,-500.0,0.00023013,2]
[357476127,1744079452431,-511.71412829,0.00023013,2]
[357476128,1744079452442,-512.01244241,0.00023013,2]
[357476129,1744079452453,-500.0,0.00023013,2]
[357476130,1744079452463,-694.6,0.00023013,2]
[357476131,1744079452473,-500.0,0.00023013,2]
[357476132,1744079452484,-500.0,0.00023013,2]
[357476133,1744079452495,-777.63,0.00023013,2]
[357476134,1744079452505,-500.0,0.00023013,2]
[357476135,1744079452516,-536.91,0.00023013,2]
[357476136,1744079452527,-527.31,0.00023013,2]
[357476137,1744079452537,-332.1388542,0.00023013,2]
[357476138,1744079452547,-647.06,0.00023013,2]
[357476139,1744079452559,-500.0,0.00023013,2]
[357476140,1744079452569,-1500.08,0.00023013,2]
[357476141,1744079452579,-500.0,0.00023013,2]
[357476142,1744079452589,-500.0,0.00023013,2]
[357476143,1744079452599,-601.69,0.00023013,2]
[357476144,1744079452610,-500.0,0.00023013,2]
[357476145,1744079452621,-500.0,0.00023013,2]
[357476146,1744079452635,-500.0,0.00023013,2]
[357476147,1744079452646,-500.0,0.00023013,2]
[357476148,1744079452658,-500.0,0.00023013,2]
[357476149,1744079452668,-1208.47,0.00023013,2]
[357476150,1744079452679,-500.0,0.00023013,2]
[357476151,1744079452689,-500.0,0.00023013,2]
[357476152,1744079452699,-1268.13,0.00023013,2]
[357476153,1744079452710,-500.0,0.00023013,2]
[357476154,1744079452720,-1140.19,0.00023013,2]
[357476155,1744079452731,-500.0,0.00023013,2]
[357476156,1744079452741,-727.74,0.00023013,2]
[357476157,1744079452750,-523.98919345,0.00023013,2]
[357476158,1744079452760,-500.0,0.00023013,2]
[357476159,1744079452770,-500.0,0.00023013,2]
[357476160,1744079452780,-554.86,0.00023013,2]
[357476161,1744079452791,-831.74,0.00023013,2]
[357476162,1744079452801,-500.0,0.00023013,2]
[357476163,1744079452811,-500.0,0.00023013,2]
[357476164,1744079452821,-500.0,0.00023013,2]
[357476165,1744079452831,-1393.1,0.00023013,2]
[357476166,1744079452842,-951.68,0.00023013,2]
[357476167,1744079452852,-500.0,0.00023013,2]
[357476168,1744079452862,-549.29015315,0.00023013,2]
[357476169,1744079452872,-500.0,0.00023013,2]
[357476170,1744079452882,-500.0,0.00023013,2]
[357476171,1744079452891,-1353.37,0.00023013,2]
[357476172,1744079452901,-500.0,0.00023013,2]
[357476173,1744079452917,-500.0,0.00023013,2]
[357476174,1744079452927,-500.0,0.00023013,2]
[357476175,1744079452938,-1182.11,0.00023013,2]
[357476176,1744079452948,-500.0,0.00023013,2]
[357476177,1744079452959,-500.0,0.00023013,2]
[357476178,1744079452969,-500.0,0.00023013,2]
[357476179,1744079452980,-500.0,0.00023013,2]
[357476180,1744079452990,-500.0,0.00023013,2]
[357476181,1744079453002,-543.50973022,0.00023013,2]
[357476182,1744079453012,-526.21,0.00023013,2]
[357476183,1744079453022,-500.0,0.00023013,2]
[357476184,1744079453033,-2114.72,0.00023013,2]
[357476185,1744079453044,-500.0,0.00023013,2]
[357476186,1744079453054,-500.0,0.00023013,2]
[357476187,1744079453064,-572.22,0.00023013,2]
[357476188,1744079453075,-500.0,0.00023013,2]
[357476189,1744079453085,-8763.46,0.00023013,2]
[357476190,1744079453095,-500.0,0.00023013,2]
[357476191,1744079453105,-1114.99,0.00023013,2]
[357476192,1744079453115,-500.0,0.00023013,2]
[357476193,1744079453125,-500.0,0.00023013,2]
[357476194,1744079453135,-500.0,0.00023013,2]
[357476195,1744079453145,-500.0,0.00023013,2]
[357476196,1744079453158,-500.0,0.00023013,2]
[357476197,1744079453168,-836.02,0.00023013,2]
[357476198,1744079453178,-1780.71,0.00023013,2]
[357476199,1744079453188,-500.0,0.00023013,2]
[357476200,1744079453199,-500.0,0.00023013,2]
[357476201,1744079453210,-390.41843553,0.00023013,2]
[357476202,1744079453220,-595.24,0.00023013,2]
[357476203,1744079453231,-524.96,0.00023013,2]
[357476204,1744079453241,-500.0,0.00023013,2]
[357476205,1744079453251,-500.0,0.00023013,2]
[357476206,1744079453261,-771.06,0.00023013,2]
[357476207,1744079453271,-500.0,0.00023013,2]
[357476208,1744079453281,-2262.69,0.00023013,2]
[357476209,1744079453292,-500.0,0.00023013,2]
[357476210,1744079453302,-500.0,0.00023013,2]
[357476211,1744079453313,-2880.26,0.00023013,2]
[357476212,1744079453323,-500.0,0.00023013,2]
[357476213,1744079453333,-1798.88,0.00023013,2]
[357476214,1744079453343,-1134.35,0.00023013,2]
[357476215,1744079453354,-500.0,0.00023013,2]
[357476216,1744079453364,-589.5,0.00023013,2]
[357476217,1744079453374,-500.0,0.00023013,2]
[357476218,1744079453384,-500.0,0.00023013,2]
[357476219,1744079453394,-500.0,0.00023013,2]
[357476220,1744079453405,-1340.54,0.00023013,2]
[357476221,1744079453415,-500.0,0.00023013,2]
[357476222,1744079453425,-500.0,0.00023013,2]
[357476223,1744079453436,-2337.51,0.00023013,2]
[357476224,1744079453446,-542.01,0.00023013,2]
[357476225,1744079453456,-2076.71,0.00023013,2]
[357476226,1744079453466,-500.0,0.00023013,2]
[357476227,1744079453476,-730.76,0.00023013,2]
[357476228,1744079453487,-500.0,0.00023013,2]
[357476229,1744079453496,-1162.69,0.00023013,2]
[357476230,1744079453507,-1291.27,0.00023013,2]
[357476231,1744079453517,-500.0,0.00023013,2]
[357476232,1744079453527,-546.37,0.00023013,2]
[357476233,1744079453537,-500.0,0.00023013,2]
[357476234,1744079453548,-1701.69,0.00023013,2]
[357476235,1744079453558,-1276.21,0.00023013,2]
[357476236,1744079453568,-500.0,0.00023013,2]
[357476237,1744079453579,-500.0,0.00023013,2]
[357476238,1744079453589,-561.08,0.00023013,2]
[357476239,1744079453599,-500.0,0.00023013,2]
[357476240,1744079453610,-500.0,0.00023013,2]
[357476241,1744079453621,-500.0,0.00023013,2]
[357476242,1744079453634,-500.0,0.00023013,2]
[357476243,1744079453644,-890.46,0.00023013,2]
[357476244,1744079453654,-500.0,0.00023013,2]
[357476245,1744079453664,-5381.3,0.00023013,2]
[357476246,1744079453675,-1513.16,0.00023013,2]
[357476247,1744079453687,-500.0,0.00023013,2]
[357476248,1744079453696,-500.0,0.00023013,2]
[357476249,1744079453707,-500.0,0.00023013,2]
[357476250,1744079453717,-500.0,0.00023013,2]
[357476251,1744079453728,-720.44,0.00023013,2]
[357476252,1744079453737,-500.0,0.00023013,2]
[357476253,1744079453747,-500.0,0.00023013,2]
[357476254,1744079453758,-500.0,0.00023013,2]
[357476255,1744079453768,-1073.11,0.00023013,2]
[357476256,1744079453778,-500.0,0.00023013,2]
[357476257,1744079453788,-568.94,0.00023013,2]
[357476258,1744079453798,-523.03,0.00023013,2]
[357476259,1744079453807,-629.28533387,0.00023013,2]
[357476260,1744079453817,-795.94,0.00023013,2]
[357476261,1744079453827,-590.76,0.00023013,2]
[357476262,1744079453836,-1531.45,0.00023013,2]
[357476263,1744079453846,-515.66099596,0.00023013,2]
[357476264,1744079453856,-500.0,0.00023013,2]
[357476265,1744079453866,-1878.37,0.00023013,2]
[357476266,1744079453876,-1180.34,0.00023013,2]
[357476267,1744079453886,-500.0,0.00023013,2]
[357476268,1744079453898,-2000.22,0.00023013,2]
[357476269,1744079453908,-1118.42,0.00023013,2]
[357476270,1744079453918,-500.0,0.00023013,2]
[357476271,1744079453927,-500.0,0.00023013,2]
[357476272,1744079453937,-1868.62,0.00023013,2]
[357476273,1744079453947,-500.0,0.00023013,2]
[357476274,1744079453957,-500.0,0.00023013,2]
[357476275,1744079453967,-500.0,0.00023013,2]
[357476276,1744079453977,-500.0,0.00023013,2]
[357476277,1744079453988,-500.0,0.00023013,2]
[357476278,1744079453999,-1602.29,0.00023013,2]
[357476279,1744079454008,-500.0,0.00023013,2]
[357476280,1744079454018,-1915.21,0.00023013,2]
[357476281,1744079454028,-500.0,0.00023013,2]
[357476282,1744079454039,-602.81,0.00023013,2]
[357476283,1744079454048,-500.0,0.00023013,2]
[357476284,1744079454058,-2426.96,0.00023013,2]
[357476285,1744079454068,-500.0,0.00023013,2]
[357476286,1744079454077,-500.0,0.00023013,2]
[357476287,1744079454087,-500.0,0.00023013,2]
[357476288,1744079454097,-500.0,0.00023013,2]
[357476289,1744079454107,-1165.83,0.00023013,2]
[357476290,1744079454117,-2935.5,0.00023013,2]
[357476291,1744079454127,-955.52,0.00023013,2]
[357476292,1744079454136,-500.0,0.00023013,2]
[357476293,1744079454146,-500.0,0.00023013,2]
[357476294,1744079454157,-500.0,0.00023013,2]
[357476295,1744079454168,-1109.48,0.00023013,2]
[357476296,1744079454178,-500.0,0.00023013,2]
[357476297,1744079454188,-500.0,0.00023013,2]
[357476298,1744079454198,-500.0,0.00023013,2]
[357476299,1744079454207,-500.0,0.00023013,2]
[357476300,1744079454217,-500.0,0.00023013,2]
[357476301,1744079454227,-1240.57,0.00023013,2]
[357476302,1744079454237,-500.0,0.00023013,2]
[357476303,1744079454247,-509.66325737,0.00023013,2]
[357476304,1744079454257,-500.0,0.00023013,2]
[357476305,1744079454266,-1640.16,0.00023013,2]
[357476306,1744079454276,-503.7,0.00023013,2]
[357476307,1744079454286,-500.0,0.00023013,2]
[357476308,1744079454295,-1130.38,0.00023013,2]
[357476309,1744079454305,-500.0,0.00023013,2]
[357476310,1744079454314,-500.0,0.00023013,2]
[357476311,1744079454325,-853.03,0.00023013,2]
[357476312,1744079454335,-5476.32761843,0.000231,4]
[357476313,1744079454345,-573.47850502,0.00023287,2]
[357476314,1744079454355,-500.0,0.00023287,2]
[357476315,1744079454364,-500.0,0.00023287,2]
[357476316,1744079454374,-500.0,0.00023287,2]
[357476317,1744079454384,-500.0,0.00023287,2]
[357476318,1744079454394,-500.0,0.00023287,2]
[357476319,1744079454404,-500.0,0.00023287,2]
[357476320,1744079454416,-500.0,0.00023287,2]
[357476321,1744079454426,-500.0,0.00023287,2]
[357476322,1744079454435,-513.52426748,0.00023287,2]
[357476323,1744079454445,-500.0,0.00023287,2]
[357476324,1744079454455,-500.11,0.00023287,2]
[357476325,1744079454466,-500.0,0.00023287,2]
[357476326,1744079454476,-500.0,0.00023287,2]
[357476327,1744079454487,-518.98233638,0.00023287,2]
[357476328,1744079454498,-500.0,0.00023287,2]
[357476329,1744079454507,-500.0,0.00023287,2]
[357476330,1744079454517,-500.0,0.00023287,2]
[357476331,1744079454527,-500.0,0.00023287,2]
[357476332,1744079454536,-500.0,0.00023287,2]
[357476333,1744079454546,-491.32629685,0.00023287,2]
[357476334,1744079454555,-500.0,0.00023287,2]
[357476335,1744079454565,-500.0,0.00023287,2]
[357476336,1744079454574,-500.0,0.00023287,2]
[357476337,1744079454584,-500.0,0.00023287,2]
[357476338,1744079454594,-500.0,0.00023287,2]
[357476339,1744079454610,-500.0,0.00023287,2]
[357476340,1744079454620,-512.33678944,0.00023287,2]
[357476341,1744079454632,-500.0,0.00023287,2]
[357476342,1744079454642,-599.08557868,0.00023287,2]
[357476343,1744079454652,-500.0,0.00023287,2]
[357476344,1744079454662,-500.0,0.00023287,2]
[357476345,1744079454673,-500.0,0.00023287,2]
[357476346,1744079454683,-500.0,0.00023287,2]
[357476347,1744079454692,-500.0,0.00023287,2]
[357476348,1744079454703,-617.55,0.00023287,2]
[357476349,1744079454714,-500.0,0.00023287,2]
[357476350,1744079454724,-500.0,0.00023287,2]
[357476351,1744079454734,-500.0,0.00023287,2]
[357476352,1744079454744,-500.0,0.00023287,2]
[357476353,1744079454754,-655.89,0.00023287,2]
[357476354,1744079454767,-500.0,0.00023287,2]
[357476355,1744079454777,-500.0,0.00023287,2]
[357476356,1744079454786,-510.90305997,0.00023287,2]
[357476357,1744079454796,-694.6,0.00023287,2]
[357476358,1744079454806,-500.0,0.00023287,2]
[357476359,1744079454816,-500.0,0.00023287,2]
[357476360,1744079454825,-777.63,0.00023287,2]
[357476361,1744079454835,-500.0,0.00023287,2]
[357476362,1744079454844,-536.91,0.00023287,2]
[357476363,1744079454854,-527.31,0.00023287,2]
[357476364,1744079454864,-647.06,0.00023287,2]
[357476365,1744079454874,-500.0,0.00023287,2]
[357476366,1744079454884,-1500.08,0.00023287,2]
[357476367,1744079454894,-500.0,0.00023287,2]
[357476368,1744079454904,-500.0,0.00023287,2]
[357476369,1744079454914,-601.69,0.00023287,2]
[357476370,1744079454923,-500.0,0.00023287,2]
[357476371,1744079454933,-500.0,0.00023287,2]
[357476372,1744079454943,-500.0,0.00023287,2]
[357476373,1744079454953,-500.0,0.00023287,2]
[357476374,1744079455132,-500.0,0.00023287,2]
[357476375,1744079455142,-1208.47,0.00023287,2]
[357476376,1744079455152,-500.0,0.00023287,2]
[357476377,1744079455162,-500.0,0.00023287,2]
[357476378,1744079455172,-1268.13,0.00023287,2]
[357476379,1744079455181,-500.0,0.00023287,2]
[357476380,1744079455191,-1140.19,0.00023287,2]
[357476381,1744079455201,-500.0,0.00023287,2]
[357476382,1744079455210,-727.74,0.00023287,2]
[357476383,1744079455220,-500.0,0.00023287,2]
[357476384,1744079455230,-500.0,0.00023287,2]
[357476385,1744079455239,-554.86,0.00023287,2]
[357476386,1744079455249,-831.74,0.00023287,2]
[357476387,1744079455259,-500.0,0.00023287,2]
[357476388,1744079455268,-507.97008993,0.00023287,2]
[357476389,1744079455278,-500.0,0.00023287,2]
[357476390,1744079455288,-1393.1,0.00023287,2]
[357476391,1744079455298,-951.68,0.00023287,2]
[357476392,1744079455307,-500.0,0.00023287,2]
[357476393,1744079455317,-500.0,0.00023287,2]
[357476394,1744079455327,-500.0,0.00023287,2]
[357476395,1744079455336,-1353.37,0.00023287,2]
[357476396,1744079455346,-500.0,0.00023287,2]